Workbook

Sheet Σύνοψη μηνιαίου προϋπολογισμού
B1: ΕΠΩΝΥΜΙΑ ΕΤΑΙΡΕΙΑΣ
B2: ΜΗΝΙΑΙΟΣ ΠΡΟΫΠΟΛΟΓΙΣΜΟΣ | E2: Ημερομηνία
B4: ΣΎΝΟΛΑ ΠΡΟΫΠΟΛΟΓΙΣΜΟΎ | C4: ΕΚΤΙΜΩΜΕΝΑ | D4: ΠΡΑΓΜΑΤΙΚΑ | E4: ΔΙΑΦΟΡΑ
B5: Έσοδα | C5: =Έσοδα[[#Totals],[ΕΚΤΙΜΩΜΕΝΑ]] -> 63,300.00 | D5: =Έσοδα[[#Totals],[ΠΡΑΓΜΑΤΙΚΑ]] -> 57,450.00 | E5: =Σύνολα[[#This Row],[ΠΡΑΓΜΑΤΙΚΑ]]-Σύνολα[[#This Row],[ΕΚΤΙΜΩΜΕΝΑ]] -> -5,850.00
B6: Έξοδα | C6: =ΛειτουργικάΈξοδα[[#Totals],[ΕΚΤΙΜΩΜΕΝΑ]]+ΈξοδαΠροσωπικού[[#Totals],[ΕΚΤΙΜΩΜΕΝΑ]] -> 54,500.00 | D6: =ΛειτουργικάΈξοδα[[#Totals],[ΠΡΑΓΜΑΤΙΚΑ]]+ΈξοδαΠροσωπικού[[#Totals],[ΠΡΑΓΜΑΤΙΚΑ]] -> 49,630.00 | E6: =Σύνολα[[#This Row],[ΕΚΤΙΜΩΜΕΝΑ]]-Σύνολα[[#This Row],[ΠΡΑΓΜΑΤΙΚΑ]] -> 4,870.00
B7: Υπόλοιπο (Έσοδα μείον Έξοδα) | C7: =C5-C6 -> 8,800.00 | D7: =D5-D6 -> 7,820.00 | E7: =Σύνολα[[#Totals],[ΠΡΑΓΜΑΤΙΚΑ]]-Σύνολα[[#Totals],[ΕΚΤΙΜΩΜΕΝΑ]] -> -980.00
B10: ΠΟΙΑ ΕΙΝΑΙ ΤΑ 5 ΚΟΡΥΦΑΙΑ ΜΕΓΑΛΥΤΕΡΑ ΛΕΙΤΟΥΡΓΙΚΑ ΕΞΟΔΑ ΜΟΥ;
B11: ΕΞΟΔΑ | C11: ΠΟΣΟ | D11: % ΕΞΟΔΩΝ | E11: ΠΟΣΟ ΜΕΙΩΣΗΣ 15%
B12: =INDEX(ΛειτουργικάΈξοδα[],MATCH(Κορυφαία5Έξοδα[[#This Row],[ΠΟΣΟ]],ΛειτουργικάΈξοδα[5 ΚΟΡΥΦΑΙΑ ΠΟΣΑ],0),1) -> Συντήρηση και επισκευές | C12: =LARGE(ΛειτουργικάΈξοδα[5 ΚΟΡΥΦΑΙΑ ΠΟΣΑ],1) -> 4,600.00 | D12: =Κορυφαία5Έξοδα[[#This Row],[ΠΟΣΟ]]/$D$6 -> 9.3% | E12: =Κορυφαία5Έξοδα[[#This Row],[ΠΟΣΟ]]*0.15 -> 690.00
B13: =INDEX(ΛειτουργικάΈξοδα[],MATCH(Κορυφαία5Έξοδα[[#This Row],[ΠΟΣΟ]],ΛειτουργικάΈξοδα[5 ΚΟΡΥΦΑΙΑ ΠΟΣΑ],0),1) -> Προμήθειες | C13: =LARGE(ΛειτουργικάΈξοδα[5 ΚΟΡΥΦΑΙΑ ΠΟΣΑ],2) -> 4,500.00 | D13: =Κορυφαία5Έξοδα[[#This Row],[ΠΟΣΟ]]/$D$6 -> 9.1% | E13: =Κορυφαία5Έξοδα[[#This Row],[ΠΟΣΟ]]*0.15 -> 675.00
B14: =INDEX(ΛειτουργικάΈξοδα[],MATCH(Κορυφαία5Έξοδα[[#This Row],[ΠΟΣΟ]],ΛειτουργικάΈξοδα[5 ΚΟΡΥΦΑΙΑ ΠΟΣΑ],0),1) -> Ενοίκιο ή στεγαστικό δάνειο | C14: =LARGE(ΛειτουργικάΈξοδα[5 ΚΟΡΥΦΑΙΑ ΠΟΣΑ],3) -> 4,500.00 | D14: =Κορυφαία5Έξοδα[[#This Row],[ΠΟΣΟ]]/$D$6 -> 9.1% | E14: =Κορυφαία5Έξοδα[[#This Row],[ΠΟΣΟ]]*0.15 -> 675.00
B15: =INDEX(ΛειτουργικάΈξοδα[],MATCH(Κορυφαία5Έξοδα[[#This Row],[ΠΟΣΟ]],ΛειτουργικάΈξοδα[5 ΚΟΡΥΦΑΙΑ ΠΟΣΑ],0),1) -> Φόροι | C15: =LARGE(ΛειτουργικάΈξοδα[5 ΚΟΡΥΦΑΙΑ ΠΟΣΑ],4) -> 3,200.00 | D15: =Κορυφαία5Έξοδα[[#This Row],[ΠΟΣΟ]]/$D$6 -> 6.4% | E15: =Κορυφαία5Έξοδα[[#This Row],[ΠΟΣΟ]]*0.15 -> 480.00
B16: =INDEX(ΛειτουργικάΈξοδα[],MATCH(Κορυφαία5Έξοδα[[#This Row],[ΠΟΣΟ]],ΛειτουργικάΈξοδα[5 ΚΟΡΥΦΑΙΑ ΠΟΣΑ],0),1) -> Διαφήμιση | C16: =LARGE(ΛειτουργικάΈξοδα[5 ΚΟΡΥΦΑΙΑ ΠΟΣΑ],5) -> 2,500.00 | D16: =Κορυφαία5Έξοδα[[#This Row],[ΠΟΣΟ]]/$D$6 -> 5.0% | E16: =Κορυφαία5Έξοδα[[#This Row],[ΠΟΣΟ]]*0.15 -> 375.00
B17: Σύνολο | C17: =SUBTOTAL(109,Κορυφαία5Έξοδα[ΠΟΣΟ]) -> 19,300.00 | D17: =SUBTOTAL(109,Κορυφαία5Έξοδα[% ΕΞΟΔΩΝ]) -> 38.9% | E17: =SUBTOTAL(109,Κορυφαία5Έξοδα[ΠΟΣΟ ΜΕΙΩΣΗΣ 15%]) -> 2,895.00

Sheet Έσοδα
B1: =ΕΠΩΝΥΜΙΑ_ΕΤΑΙΡΕΙΑΣ -> ΕΠΩΝΥΜΙΑ ΕΤΑΙΡΕΙΑΣ
B2: =BUDGET_Title -> ΜΗΝΙΑΙΟΣ ΠΡΟΫΠΟΛΟΓΙΣΜΟΣ
B4: ΕΣΟΔΑ | C4: ΕΚΤΙΜΩΜΕΝΑ | D4: ΠΡΑΓΜΑΤΙΚΑ | E4: 5 ΚΟΡΥΦΑΙΑ ΠΟΣΑ | F4: ΔΙΑΦΟΡΑ
B5: Καθαρές πωλήσεις | C5: 60,000.00 | D5: 54,000.00 | E5: =Έσοδα[[#This Row],[ΠΡΑΓΜΑΤΙΚΑ]]+(10^-6)*ROW(Έσοδα[[#This Row],[ΠΡΑΓΜΑΤΙΚΑ]]) -> 54,000.00 | F5: =Έσοδα[[#This Row],[ΠΡΑΓΜΑΤΙΚΑ]]-Έσοδα[[#This Row],[ΕΚΤΙΜΩΜΕΝΑ]] -> -6,000.00
B6: Έσοδα αποπληρωμής τόκων | C6: 3,000.00 | D6: 3,000.00 | E6: =Έσοδα[[#This Row],[ΠΡΑΓΜΑΤΙΚΑ]]+(10^-6)*ROW(Έσοδα[[#This Row],[ΠΡΑΓΜΑΤΙΚΑ]]) -> 3,000.00 | F6: =Έσοδα[[#This Row],[ΠΡΑΓΜΑΤΙΚΑ]]-Έσοδα[[#This Row],[ΕΚΤΙΜΩΜΕΝΑ]] -> 0.00
B7: Πωλήσεις περιουσιακών στοιχείων (κέρδος/ζημία) | C7: 300.00 | D7: 450.00 | E7: =Έσοδα[[#This Row],[ΠΡΑΓΜΑΤΙΚΑ]]+(10^-6)*ROW(Έσοδα[[#This Row],[ΠΡΑΓΜΑΤΙΚΑ]]) -> 450.00 | F7: =Έσοδα[[#This Row],[ΠΡΑΓΜΑΤΙΚΑ]]-Έσοδα[[#This Row],[ΕΚΤΙΜΩΜΕΝΑ]] -> 150.00
B8: Σύνολο εσόδων | C8: =SUBTOTAL(109,Έσοδα[ΕΚΤΙΜΩΜΕΝΑ]) -> 63,300.00 | D8: =SUBTOTAL(109,Έσοδα[ΠΡΑΓΜΑΤΙΚΑ]) -> 57,450.00 | F8: =SUBTOTAL(109,Έσοδα[ΔΙΑΦΟΡΑ]) -> -5,850.00

Sheet Έξοδα προσωπικού
B1: =ΕΠΩΝΥΜΙΑ_ΕΤΑΙΡΕΙΑΣ -> ΕΠΩΝΥΜΙΑ ΕΤΑΙΡΕΙΑΣ
B2: =BUDGET_Title -> ΜΗΝΙΑΙΟΣ ΠΡΟΫΠΟΛΟΓΙΣΜΟΣ
B4: ΕΞΟΔΑ ΠΡΟΣΩΠΙΚΟΥ | C4: ΕΚΤΙΜΩΜΕΝΑ | D4: ΠΡΑΓΜΑΤΙΚΑ | E4: 5 ΚΟΡΥΦΑΙΑ ΠΟΣΑ | F4: ΔΙΑΦΟΡΑ
B5: Μισθοί | C5: 9,500.00 | D5: 9,600.00 | E5: =ΈξοδαΠροσωπικού[[#This Row],[ΠΡΑΓΜΑΤΙΚΑ]]+(10^-6)*ROW(ΈξοδαΠροσωπικού[[#This Row],[ΠΡΑΓΜΑΤΙΚΑ]]) -> 9,600.00 | F5: =ΈξοδαΠροσωπικού[[#This Row],[ΕΚΤΙΜΩΜΕΝΑ]]-ΈξοδαΠροσωπικού[[#This Row],[ΠΡΑΓΜΑΤΙΚΑ]] -> -100.00
B6: Παροχές υπαλλήλων | C6: 4,000.00 | D6: 0.00 | E6: =ΈξοδαΠροσωπικού[[#This Row],[ΠΡΑΓΜΑΤΙΚΑ]]+(10^-6)*ROW(ΈξοδαΠροσωπικού[[#This Row],[ΠΡΑΓΜΑΤΙΚΑ]]) -> 0.00 | F6: =ΈξοδαΠροσωπικού[[#This Row],[ΕΚΤΙΜΩΜΕΝΑ]]-ΈξοδαΠροσωπικού[[#This Row],[ΠΡΑΓΜΑΤΙΚΑ]] -> 4,000.00
B7: Προμήθεια | C7: 5,000.00 | D7: 4,500.00 | E7: =ΈξοδαΠροσωπικού[[#This Row],[ΠΡΑΓΜΑΤΙΚΑ]]+(10^-6)*ROW(ΈξοδαΠροσωπικού[[#This Row],[ΠΡΑΓΜΑΤΙΚΑ]]) -> 4,500.00 | F7: =ΈξοδαΠροσωπικού[[#This Row],[ΕΚΤΙΜΩΜΕΝΑ]]-ΈξοδαΠροσωπικού[[#This Row],[ΠΡΑΓΜΑΤΙΚΑ]] -> 500.00
B8: Σύνολο εξόδων προσωπικού | C8: =SUBTOTAL(109,ΈξοδαΠροσωπικού[ΕΚΤΙΜΩΜΕΝΑ]) -> 18,500.00 | D8: =SUBTOTAL(109,ΈξοδαΠροσωπικού[ΠΡΑΓΜΑΤΙΚΑ]) -> 14,100.00 | F8: =SUBTOTAL(109,ΈξοδαΠροσωπικού[ΔΙΑΦΟΡΑ]) -> 4,400.00

Sheet Λειτουργικά έξοδα
B1: =ΕΠΩΝΥΜΙΑ_ΕΤΑΙΡΕΙΑΣ -> ΕΠΩΝΥΜΙΑ ΕΤΑΙΡΕΙΑΣ
B2: =BUDGET_Title -> ΜΗΝΙΑΙΟΣ ΠΡΟΫΠΟΛΟΓΙΣΜΟΣ
B4: ΛΕΙΤΟΥΡΓΙΚΑ ΕΞΟΔΑ | C4: ΕΚΤΙΜΩΜΕΝΑ | D4: ΠΡΑΓΜΑΤΙΚΑ | E4: 5 ΚΟΡΥΦΑΙΑ ΠΟΣΑ | F4: ΔΙΑΦΟΡΑ
B5: Διαφήμιση | C5: 3,000.00 | D5: 2,500.00 | E5: =ΛειτουργικάΈξοδα[[#This Row],[ΠΡΑΓΜΑΤΙΚΑ]]+(10^-6)*ROW(ΛειτουργικάΈξοδα[[#This Row],[ΠΡΑΓΜΑΤΙΚΑ]]) -> 2,500.00 | F5: =ΛειτουργικάΈξοδα[[#This Row],[ΕΚΤΙΜΩΜΕΝΑ]]-ΛειτουργικάΈξοδα[[#This Row],[ΠΡΑΓΜΑΤΙΚΑ]] -> 500.00
B6: Μη εισπράξιμες οφειλές | C6: 2,000.00 | D6: 2,000.00 | E6: =ΛειτουργικάΈξοδα[[#This Row],[ΠΡΑΓΜΑΤΙΚΑ]]+(10^-6)*ROW(ΛειτουργικάΈξοδα[[#This Row],[ΠΡΑΓΜΑΤΙΚΑ]]) -> 2,000.00 | F6: =ΛειτουργικάΈξοδα[[#This Row],[ΕΚΤΙΜΩΜΕΝΑ]]-ΛειτουργικάΈξοδα[[#This Row],[ΠΡΑΓΜΑΤΙΚΑ]] -> 0.00
B7: Εκπτώσεις για πληρωμή τοις μετρητοίς | C7: 1,500.00 | D7: 2,175.00 | E7: =ΛειτουργικάΈξοδα[[#This Row],[ΠΡΑΓΜΑΤΙΚΑ]]+(10^-6)*ROW(ΛειτουργικάΈξοδα[[#This Row],[ΠΡΑΓΜΑΤΙΚΑ]]) -> 2,175.00 | F7: =ΛειτουργικάΈξοδα[[#This Row],[ΕΚΤΙΜΩΜΕΝΑ]]-ΛειτουργικάΈξοδα[[#This Row],[ΠΡΑΓΜΑΤΙΚΑ]] -> -675.00
B8: Έξοδα παράδοσης | C8: 2,000.00 | D8: 1,500.00 | E8: =ΛειτουργικάΈξοδα[[#This Row],[ΠΡΑΓΜΑΤΙΚΑ]]+(10^-6)*ROW(ΛειτουργικάΈξοδα[[#This Row],[ΠΡΑΓΜΑΤΙΚΑ]]) -> 1,500.00 | F8: =ΛειτουργικάΈξοδα[[#This Row],[ΕΚΤΙΜΩΜΕΝΑ]]-ΛειτουργικάΈξοδα[[#This Row],[ΠΡΑΓΜΑΤΙΚΑ]] -> 500.00
B9: Αποσβέσεις | C9: 1,000.00 | D9: 1,000.00 | E9: =ΛειτουργικάΈξοδα[[#This Row],[ΠΡΑΓΜΑΤΙΚΑ]]+(10^-6)*ROW(ΛειτουργικάΈξοδα[[#This Row],[ΠΡΑΓΜΑΤΙΚΑ]]) -> 1,000.00 | F9: =ΛειτουργικάΈξοδα[[#This Row],[ΕΚΤΙΜΩΜΕΝΑ]]-ΛειτουργικάΈξοδα[[#This Row],[ΠΡΑΓΜΑΤΙΚΑ]] -> 0.00
B10: Οφειλές και συνδρομές | C10: 500.00 | D10: 525.00 | E10: =ΛειτουργικάΈξοδα[[#This Row],[ΠΡΑΓΜΑΤΙΚΑ]]+(10^-6)*ROW(ΛειτουργικάΈξοδα[[#This Row],[ΠΡΑΓΜΑΤΙΚΑ]]) -> 525.00 | F10: =ΛειτουργικάΈξοδα[[#This Row],[ΕΚΤΙΜΩΜΕΝΑ]]-ΛειτουργικάΈξοδα[[#This Row],[ΠΡΑΓΜΑΤΙΚΑ]] -> -25.00
B11: Ασφάλεια | C11: 1,300.00 | D11: 1,275.00 | E11: =ΛειτουργικάΈξοδα[[#This Row],[ΠΡΑΓΜΑΤΙΚΑ]]+(10^-6)*ROW(ΛειτουργικάΈξοδα[[#This Row],[ΠΡΑΓΜΑΤΙΚΑ]]) -> 1,275.00 | F11: =ΛειτουργικάΈξοδα[[#This Row],[ΕΚΤΙΜΩΜΕΝΑ]]-ΛειτουργικάΈξοδα[[#This Row],[ΠΡΑΓΜΑΤΙΚΑ]] -> 25.00
B12: Τόκοι | C12: 2,000.00 | D12: 2,200.00 | E12: =ΛειτουργικάΈξοδα[[#This Row],[ΠΡΑΓΜΑΤΙΚΑ]]+(10^-6)*ROW(ΛειτουργικάΈξοδα[[#This Row],[ΠΡΑΓΜΑΤΙΚΑ]]) -> 2,200.00 | F12: =ΛειτουργικάΈξοδα[[#This Row],[ΕΚΤΙΜΩΜΕΝΑ]]-ΛειτουργικάΈξοδα[[#This Row],[ΠΡΑΓΜΑΤΙΚΑ]] -> -200.00
B13: Νομικά θέματα και λογιστικός έλεγχος | C13: 1,000.00 | D13: 800.00 | E13: =ΛειτουργικάΈξοδα[[#This Row],[ΠΡΑΓΜΑΤΙΚΑ]]+(10^-6)*ROW(ΛειτουργικάΈξοδα[[#This Row],[ΠΡΑΓΜΑΤΙΚΑ]]) -> 800.00 | F13: =ΛειτουργικάΈξοδα[[#This Row],[ΕΚΤΙΜΩΜΕΝΑ]]-ΛειτουργικάΈξοδα[[#This Row],[ΠΡΑΓΜΑΤΙΚΑ]] -> 200.00
B14: Συντήρηση και επισκευές | C14: 4,500.00 | D14: 4,600.00 | E14: =ΛειτουργικάΈξοδα[[#This Row],[ΠΡΑΓΜΑΤΙΚΑ]]+(10^-6)*ROW(ΛειτουργικάΈξοδα[[#This Row],[ΠΡΑΓΜΑΤΙΚΑ]]) -> 4,600.00 | F14: =ΛειτουργικάΈξοδα[[#This Row],[ΕΚΤΙΜΩΜΕΝΑ]]-ΛειτουργικάΈξοδα[[#This Row],[ΠΡΑΓΜΑΤΙΚΑ]] -> -100.00
B15: Προμήθειες γραφείου | C15: 800.00 | D15: 750.00 | E15: =ΛειτουργικάΈξοδα[[#This Row],[ΠΡΑΓΜΑΤΙΚΑ]]+(10^-6)*ROW(ΛειτουργικάΈξοδα[[#This Row],[ΠΡΑΓΜΑΤΙΚΑ]]) -> 750.00 | F15: =ΛειτουργικάΈξοδα[[#This Row],[ΕΚΤΙΜΩΜΕΝΑ]]-ΛειτουργικάΈξοδα[[#This Row],[ΠΡΑΓΜΑΤΙΚΑ]] -> 50.00
B16: Ταχυδρομικά τέλη | C16: 400.00 | D16: 350.00 | E16: =ΛειτουργικάΈξοδα[[#This Row],[ΠΡΑΓΜΑΤΙΚΑ]]+(10^-6)*ROW(ΛειτουργικάΈξοδα[[#This Row],[ΠΡΑΓΜΑΤΙΚΑ]]) -> 350.00 | F16: =ΛειτουργικάΈξοδα[[#This Row],[ΕΚΤΙΜΩΜΕΝΑ]]-ΛειτουργικάΈξοδα[[#This Row],[ΠΡΑΓΜΑΤΙΚΑ]] -> 50.00
B17: Ενοίκιο ή στεγαστικό δάνειο | C17: 4,100.00 | D17: 4,500.00 | E17: =ΛειτουργικάΈξοδα[[#This Row],[ΠΡΑΓΜΑΤΙΚΑ]]+(10^-6)*ROW(ΛειτουργικάΈξοδα[[#This Row],[ΠΡΑΓΜΑΤΙΚΑ]]) -> 4,500.00 | F17: =ΛειτουργικάΈξοδα[[#This Row],[ΕΚΤΙΜΩΜΕΝΑ]]-ΛειτουργικάΈξοδα[[#This Row],[ΠΡΑΓΜΑΤΙΚΑ]] -> -400.00
B18: Έξοδα πωλήσεων | C18: 350.00 | D18: 400.00 | E18: =ΛειτουργικάΈξοδα[[#This Row],[ΠΡΑΓΜΑΤΙΚΑ]]+(10^-6)*ROW(ΛειτουργικάΈξοδα[[#This Row],[ΠΡΑΓΜΑΤΙΚΑ]]) -> 400.00 | F18: =ΛειτουργικάΈξοδα[[#This Row],[ΕΚΤΙΜΩΜΕΝΑ]]-ΛειτουργικάΈξοδα[[#This Row],[ΠΡΑΓΜΑΤΙΚΑ]] -> -50.00
B19: Έξοδα αποστολής και αποθήκευσης | C19: 900.00 | D19: 840.00 | E19: =ΛειτουργικάΈξοδα[[#This Row],[ΠΡΑΓΜΑΤΙΚΑ]]+(10^-6)*ROW(ΛειτουργικάΈξοδα[[#This Row],[ΠΡΑΓΜΑΤΙΚΑ]]) -> 840.00 | F19: =ΛειτουργικάΈξοδα[[#This Row],[ΕΚΤΙΜΩΜΕΝΑ]]-ΛειτουργικάΈξοδα[[#This Row],[ΠΡΑΓΜΑΤΙΚΑ]] -> 60.00
B20: Προμήθειες | C20: 5,000.00 | D20: 4,500.00 | E20: =ΛειτουργικάΈξοδα[[#This Row],[ΠΡΑΓΜΑΤΙΚΑ]]+(10^-6)*ROW(ΛειτουργικάΈξοδα[[#This Row],[ΠΡΑΓΜΑΤΙΚΑ]]) -> 4,500.00 | F20: =ΛειτουργικάΈξοδα[[#This Row],[ΕΚΤΙΜΩΜΕΝΑ]]-ΛειτουργικάΈξοδα[[#This Row],[ΠΡΑΓΜΑΤΙΚΑ]] -> 500.00
B21: Φόροι | C21: 3,000.00 | D21: 3,200.00 | E21: =ΛειτουργικάΈξοδα[[#This Row],[ΠΡΑΓΜΑΤΙΚΑ]]+(10^-6)*ROW(ΛειτουργικάΈξοδα[[#This Row],[ΠΡΑΓΜΑΤΙΚΑ]]) -> 3,200.00 | F21: =ΛειτουργικάΈξοδα[[#This Row],[ΕΚΤΙΜΩΜΕΝΑ]]-ΛειτουργικάΈξοδα[[#This Row],[ΠΡΑΓΜΑΤΙΚΑ]] -> -200.00
B22: Τηλέφωνο | C22: 250.00 | D22: 280.00 | E22: =ΛειτουργικάΈξοδα[[#This Row],[ΠΡΑΓΜΑΤΙΚΑ]]+(10^-6)*ROW(ΛειτουργικάΈξοδα[[#This Row],[ΠΡΑΓΜΑΤΙΚΑ]]) -> 280.00 | F22: =ΛειτουργικάΈξοδα[[#This Row],[ΕΚΤΙΜΩΜΕΝΑ]]-ΛειτουργικάΈξοδα[[#This Row],[ΠΡΑΓΜΑΤΙΚΑ]] -> -30.00
B23: Υπηρεσίες κοινής ωφελείας | C23: 1,400.00 | D23: 1,385.00 | E23: =ΛειτουργικάΈξοδα[[#This Row],[ΠΡΑΓΜΑΤΙΚΑ]]+(10^-6)*ROW(ΛειτουργικάΈξοδα[[#This Row],[ΠΡΑΓΜΑΤΙΚΑ]]) -> 1,385.00 | F23: =ΛειτουργικάΈξοδα[[#This Row],[ΕΚΤΙΜΩΜΕΝΑ]]-ΛειτουργικάΈξοδα[[#This Row],[ΠΡΑΓΜΑΤΙΚΑ]] -> 15.00
B24: Άλλο | C24: 1,000.00 | D24: 750.00 | E24: =ΛειτουργικάΈξοδα[[#This Row],[ΠΡΑΓΜΑΤΙΚΑ]]+(10^-6)*ROW(ΛειτουργικάΈξοδα[[#This Row],[ΠΡΑΓΜΑΤΙΚΑ]]) -> 750.00 | F24: =ΛειτουργικάΈξοδα[[#This Row],[ΕΚΤΙΜΩΜΕΝΑ]]-ΛειτουργικάΈξοδα[[#This Row],[ΠΡΑΓΜΑΤΙΚΑ]] -> 250.00
B25: Σύνολο λειτουργικών εξόδων | C25: =SUBTOTAL(109,ΛειτουργικάΈξοδα[ΕΚΤΙΜΩΜΕΝΑ]) -> 36,000.00 | D25: =SUBTOTAL(109,ΛειτουργικάΈξοδα[ΠΡΑΓΜΑΤΙΚΑ]) -> 35,530.00 | F25: =SUBTOTAL(109,ΛειτουργικάΈξοδα[ΔΙΑΦΟΡΑ]) -> 470.00
